[Event "Turkish Club Cup 2019"]
[Site "Konya"]
[Date "2019.07.17"]
[Round "2"]
[White "Kargi, Mert"]
[Black "Emir, Emirhan"]
[Result "0-1"]
[ECO "A90"]
[WhiteElo "1729"]
[BlackElo "1904"]
[Annotator "NA"]
[PlyCount "94"]
[EventDate "2019.07.16"]
[EventType "team-tourn"]
[EventCountry "TUR"]
[SourceTitle "playchess.com"]
[Source "ChessBase"]
[SourceQuality "1"]
[TimeControl "5400+30"]

1. c4 {[%emt 0:00:30]} e6 {[%emt 0:00:30]} 2. Nf3 {[%emt 0:00:30]} f5 {[%emt 0:00:00]} 3. d4 {[%emt 0:00:00]} Nf6 {[%emt 0:00:00]} 4. g3 {[%emt 0:01:00]} d5 {[%emt 0:00:00]} 5. Bg2 {[%emt 0:01:30]} c6 {[%emt 0:00:00]} 6. O-O {[%emt 0:00:00]} Bd6 {[%emt 0:00:30]} 7. Nc3 {[%emt 0:07:00]} O-O {[%emt 0:00:30]} 8. cxd5 {[%emt 0:09:30]} exd5 {[%emt 0:00:30]} 9. Bf4 {[%emt 0:00:30]} b6 {[%emt 0:08:30] A90: Dutch Defence: Miscellaneous and Modern Stonewall (with ...Bd6)} 10. Ne5 {[%emt 0:03:30]} Qe7 {[%emt 0:00:30]} (10... Bb7 11. Qb3 Kh8 12. Nd3 Ne4 13. Rad1 Qf6 14. Bxd6 Nxd6 {1-0 (42) Pantelic,S (2358)-Jovanovic,B (2233) Paracin 2017}) 11. Qa4 $146 {[%emt 0:01:30]} ({Predecessor:} 11. Qc2 Bxe5 12. Bxe5 Be6 13. f3 Nfd7 14. Bf4 g5 15. Be3 Rf7 16. Qd2 {1-0 (25) Solis Chimoy,B (1871)-Sarmiento Robles,P (1796) Santa Cruz 2015}) 11... Bb7 {[%emt 0:00:30]} 12. Rac1 {[%emt 0:01:30]} Nfd7 {[%emt 0:02:30]} 13. Nd3 {[%emt 0:07:30]} a5 {[%emt 0:07:30]} 14. Bxd6 {[%emt 0:10:30]} Qxd6 {[%emt 0:00:00]} 15. f4 {[%emt 0:05:30]} b5 {[%emt 0:03:00]} 16. Qc2 {[%emt 0:01:30]} Na6 {[%emt 0:00:30]} 17. Ne5 {[%emt 0:09:30]} Nb6 {[%emt 0:03:30]} 18. Rfd1 {[%emt 0:06:30]} Nc7 {[%emt 0:02:30]} 19. a4 {[%emt 0:01:30]} b4 {[%emt 0:02:30] [#]} (19... Nc4 $1 $14) 20. Nb1 {[%emt 0:03:30]} (20. Nb5 $1 $16 {[%cal Rb5d6][%mdl 512]} Nxb5 (20... cxb5 21. Qxc7) 21. axb5 cxb5 22. Qc7 Qxc7 23. Rxc7) 20... Ne6 {[%emt 0:01:30]} 21. b3 {[%emt 0:02:30]} Rac8 {[%emt 0:01:30]} 22. Qb2 {[%emt 0:04:30]} Rfd8 {[%emt 0:12:30]} 23. Nd3 {[%emt 0:03:10]} Nd7 {[%emt 0:00:30]} 24. Nd2 {[%emt 0:02:20]} c5 {[%emt 0:01:30]} 25. dxc5 {[%emt 0:00:18]} Ndxc5 {[%emt 0:00:30]} 26. Nxc5 $15 {[%emt 0:00:18]} Rxc5 {[%emt 0:00:30]} 27. Nc4 {[%emt 0:01:04]} Qc7 {[%emt 0:00:00]} 28. Qe5 {[%emt 0:04:31]} Qxe5 {[%emt 0:05:00]} 29. Nxe5 {[%emt 0:00:06]} Rc3 {[%emt 0:00:00]} 30. Rb1 {[%emt 0:03:13]} Nc5 {[%emt 0:00:00]} 31. Nc4 {[%emt 0:00:46]} Nxb3 {[%emt 0:01:30]} 32. Rxb3 {[%emt 0:03:11]} Rxc4 {[%emt 0:00:30]} 33. Rbd3 {[%emt 0:00:00]} Rc2 {[%emt 0:02:30]} 34. e4 {[%emt 0:07:22]} Rxg2+ {[%emt 0:03:30]} 35. Kxg2 {[%emt 0:00:40]} fxe4 {[%emt 0:00:30]} 36. Rd4 {[%emt 0:00:24]} Rc8 {[%emt 0:00:30]} 37. Kh3 {[%emt 0:00:35]} Kf7 {[%emt 0:00:30]} 38. Kg4 {[%emt 0:00:42]} Ke6 {[%emt 0:00:30]} 39. R1d2 {[%emt 0:00:15]} Rc3 {[%emt 0:00:30]} 40. Ra2 {[%emt 0:00:31]} Ba6 {[%emt 0:00:30]} 41. Rd1 {[%emt 0:00:33]} e3 {[%emt 0:00:00]} 42. Re1 {[%emt 0:00:52]} d4 {[%emt 0:00:00]} 43. Rd2 {[%emt 0:00:36]} Kd5 {[%emt 0:00:30]} 44. Rdd1 {[%emt 0:00:16]} Ke4 {[%emt 0:00:30]} 45. h4 {[%emt 0:00:15]} e2 {[%emt 0:00:30]} 46. Ra1 {[%emt 0:00:30]} d3 {[%emt 0:00:00]} 47. Ra2 {[%emt 0:00:23]} Ke3 {[%emt 0:00:00]} 0-1

[Event "Turkish Club Cup 2019"]
[Site "Konya"]
[Date "2019.07.17"]
[Round "2"]
[White "Vursan, Emre Can"]
[Black "Koc, Abdullah"]
[Result "1-0"]
[ECO "C62"]
[WhiteElo "1714"]
[BlackElo "1615"]
[Annotator "NA"]
[PlyCount "73"]
[EventDate "2019.07.16"]
[EventType "team-tourn"]
[EventCountry "TUR"]
[SourceTitle "playchess.com"]
[Source "ChessBase"]
[SourceQuality "1"]
[TimeControl "5400+30"]

1. e4 {[%emt 0:00:30]} e5 {[%emt 0:00:30]} 2. Nf3 {[%emt 0:00:00]} Nc6 {[%emt 0:00:30]} 3. Nc3 {[%emt 0:00:00]} Nf6 {[%emt 0:00:30]} 4. Bb5 {[%emt 0:00:30]} d6 {[%emt 0:00:30]} 5. d4 {[%emt 0:00:00]} exd4 {[%emt 0:00:00]} 6. Qxd4 {[%emt 0:00:00]} Bd7 {[%emt 0:01:00]} 7. Bxc6 {[%emt 0:00:00]} bxc6 {[%emt 0:00:00]} 8. Bg5 {[%emt 0:00:00]} Be7 {[%emt 0:00:00]} 9. O-O-O {[%emt 0:00:30]} h6 {[%emt 0:05:30]} 10. Bh4 {[%emt 0:01:30]} O-O {[%emt 0:00:30]} 11. e5 {[%emt 0:01:30]} Ne8 {[%emt 0:04:30]} 12. exd6 {[%emt 0:06:30]} cxd6 {[%emt 0:02:30]} 13. Bxe7 {[%emt 0:00:30]} Qxe7 {[%emt 0:00:30]} 14. Rhe1 {[%emt 0:00:30]} Be6 {[%emt 0:00:30]} 15. Ne4 {[%emt 0:02:30]} c5 {[%emt 0:03:30]} 16. Qc3 {[%emt 0:07:30]} Rb8 {[%emt 0:01:30]} 17. h3 {[%emt 0:10:30]} Qc7 {[%emt 0:00:30]} 18. g4 {[%emt 0:01:30]} a5 {[%emt 0:06:30]} 19. g5 {[%emt 0:14:30]} h5 {[%emt 0:04:30]} 20. Rg1 {[%emt 0:09:30]} Qc6 {[%emt 0:05:30]} 21. Nf6+ {[%emt 0:07:30]} Nxf6 {[%emt 0:07:30]} 22. gxf6 {[%emt 0:00:30]} g6 {[%emt 0:00:30]} 23. Qe3 {[%emt 0:00:30]} Qb6 {[%emt 0:03:30]} 24. b3 {[%emt 0:00:30]} Qd8 {[%emt 0:03:30]} 25. Qg5 {[%emt 0:00:00]} Kh7 {[%emt 0:00:30]} 26. Qf4 {[%emt 0:02:00]} Rb4 {[%emt 0:00:30]} 27. Ng5+ {[%emt 0:00:30]} Kg8 {[%emt 0:01:30]} 28. c4 {[%emt 0:01:30]} Bf5 {[%emt 0:02:30]} 29. Rxd6 {[%emt 0:01:30]} Qb8 {[%emt 0:01:30]} 30. Ne4 {[%emt 0:06:30]} Kh7 {[%emt 0:03:30]} 31. Rg5 {[%emt 0:08:10]} Bxe4 {[%emt 0:02:30]} 32. Rxh5+ {[%emt 0:00:04]} gxh5 {[%emt 0:03:30]} 33. Qxe4+ {[%emt 0:00:02]} Kh6 {[%emt 0:06:30]} 34. Qf4+ {[%emt 0:02:48]} Kg6 {[%emt 0:02:30]} 35. h4 {[%emt 0:00:08]} Rxc4+ {[%emt 0:01:30]} 36. bxc4 {[%emt 0:00:08]} Kh7 {[%emt 0:02:30]} 37. Qf5+ {[%emt 0:00:13]} 1-0

[Event "Turkish Club Cup 2019"]
[Site "Konya"]
[Date "2019.07.17"]
[Round "2"]
[White "Sinay, Ahmet"]
[Black "Keskin, Osman Orcun"]
[Result "1/2-1/2"]
[ECO "A48"]
[WhiteElo "1692"]
[BlackElo "1719"]
[Annotator "NA"]
[PlyCount "128"]
[EventDate "2019.07.16"]
[EventType "team-tourn"]
[EventCountry "TUR"]
[SourceTitle "playchess.com"]
[Source "ChessBase"]
[SourceQuality "1"]
[TimeControl "5400+30"]

1. d4 {[%emt 0:00:30]} Nf6 {[%emt 0:00:30]} 2. Bf4 {[%emt 0:00:00]} d6 {[%emt 0:00:00]} 3. e3 {[%emt 0:00:00]} g6 {[%emt 0:00:00]} 4. h3 {[%emt 0:00:30]} Bg7 {[%emt 0:00:30]} 5. Nf3 {[%emt 0:00:00]} O-O {[%emt 0:00:30]} 6. Be2 {[%emt 0:00:00]} c5 {[%emt 0:01:30]} 7. c3 {[%emt 0:00:30]} cxd4 {[%emt 0:00:30]} 8. exd4 {[%emt 0:01:30]} a6 {[%emt 0:00:30]} 9. O-O {[%emt 0:02:30]} b5 {[%emt 0:01:30]} 10. Nbd2 {[%emt 0:01:30]} Bb7 {[%emt 0:00:30]} 11. a3 {[%emt 0:00:30]} Nbd7 {[%emt 0:00:30]} 12. Re1 {[%emt 0:07:30]} Nb6 {[%emt 0:02:30]} 13. Bh2 {[%emt 0:03:30]} Rc8 {[%emt 0:01:30]} 14. Bd3 {[%emt 0:02:30]} Re8 {[%emt 0:01:30]} 15. Rc1 {[%emt 0:07:30]} Nc4 {[%emt 0:01:30]} 16. Nxc4 {[%emt 0:01:30]} bxc4 {[%emt 0:00:30]} 17. Bc2 {[%emt 0:00:00]} Bh6 {[%emt 0:06:30]} 18. Rb1 {[%emt 0:03:00]} Nd5 {[%emt 0:01:30]} 19. Ba4 {[%emt 0:00:00]} Rf8 {[%emt 0:01:30]} 20. Bc2 {[%emt 0:05:00]} Qb6 {[%emt 0:12:30]} 21. h4 {[%emt 0:13:30]} e6 {[%emt 0:07:30]} 22. Ng5 {[%emt 0:00:30]} Nf6 {[%emt 0:01:30]} 23. Ne4 {[%emt 0:03:30]} Nxe4 {[%emt 0:06:30]} 24. Bxe4 {[%emt 0:02:30]} Rb8 {[%emt 0:09:30]} 25. Qe2 {[%emt 0:10:30]} Rfc8 {[%emt 0:03:30]} 26. g4 {[%emt 0:05:30]} Bxe4 {[%emt 0:03:30]} 27. Qxe4 {[%emt 0:00:00]} Qc6 {[%emt 0:00:30]} 28. Qxc6 {[%emt 0:02:00]} Rxc6 {[%emt 0:00:00]} 29. g5 {[%emt 0:00:30]} Bf8 {[%emt 0:01:00]} 30. Bf4 {[%emt 0:00:30]} Rcb6 {[%emt 0:00:30]} 31. Bc1 {[%emt 0:00:30]} Be7 {[%emt 0:02:30]} 32. Re2 {[%emt 0:04:30]} Rb5 {[%emt 0:01:30]} 33. f4 {[%emt 0:01:30]} Kf8 {[%emt 0:03:30]} 34. Kf1 {[%emt 0:00:30]} h6 {[%emt 0:11:21]} 35. Ke1 {[%emt 0:03:30]} hxg5 {[%emt 0:00:34]} 36. hxg5 {[%emt 0:00:30]} Kg7 {[%emt 0:00:30]} 37. Kd1 {[%emt 0:00:30]} Rh8 {[%emt 0:00:30]} 38. Kc2 {[%emt 0:00:30]} Rh1 {[%emt 0:00:30]} 39. Bd2 {[%emt 0:00:30]} Rxb1 {[%emt 0:00:30]} 40. Kxb1 {[%emt 0:00:30]} d5 {[%emt 0:00:30]} 41. Kc2 {[%emt 0:00:30]} Bd6 {[%emt 0:04:01]} 42. Rh2 {[%emt 0:07:57]} a5 {[%emt 0:01:20]} 43. Rh1 {[%emt 0:00:39]} a4 {[%emt 0:00:11]} 44. Bc1 {[%emt 0:00:17]} Rb8 {[%emt 0:00:47]} 45. Be3 {[%emt 0:00:33]} Rh8 {[%emt 0:00:37]} 46. Rxh8 {[%emt 0:00:00]} Kxh8 {[%emt 0:00:30]} 47. Kd2 {[%emt 0:00:00]} Kg7 {[%emt 0:00:30]} 48. Ke2 {[%emt 0:00:28]} f6 {[%emt 0:00:30]} 49. Kf3 {[%emt 0:00:03]} Kf7 {[%emt 0:00:30]} 50. Kg4 {[%emt 0:02:05]} e5 {[%emt 0:03:59]} 51. fxe5 {[%emt 0:00:44]} fxe5 {[%emt 0:00:39]} 52. dxe5 {[%emt 0:00:04]} Bxe5 {[%emt 0:00:09]} 53. Bd4 {[%emt 0:00:10]} Ke6 {[%emt 0:00:00]} 54. Bc5 {[%emt 0:01:07]} Bh2 {[%emt 0:01:38]} 55. Bd4 {[%emt 0:00:14]} Bd6 {[%emt 0:00:12]} 56. Be3 {[%emt 0:00:58]} Bh2 {[%emt 0:01:24]} 57. Bd4 {[%emt 0:00:09]} Bc7 {[%emt 0:02:10]} 58. Be3 {[%emt 0:00:21]} Bd8 {[%emt 0:01:41]} 59. Bd4 {[%emt 0:00:12]} Ba5 {[%emt 0:00:35]} 60. Kf4 {[%emt 0:00:33]} Bd8 {[%emt 0:02:45]} 61. Kg4 {[%emt 0:00:12]} Be7 {[%emt 0:00:32]} 62. Kf4 {[%emt 0:00:08]} Bd6+ {[%emt 0:00:08]} 63. Kg4 {[%emt 0:00:31]} Be5 {[%emt 0:00:07]} 64. Be3 {[%emt 0:00:00]} Bh2 {[%emt 0:01:38]} 1/2-1/2

[Event "Turkish Club Cup 2019"]
[Site "Konya"]
[Date "2019.07.17"]
[Round "2"]
[White "Kayan, Yasar Efe"]
[Black "Basaran, Alp"]
[Result "0-1"]
[ECO "B26"]
[WhiteElo "1675"]
[BlackElo "1857"]
[Annotator "NA"]
[PlyCount "98"]
[EventDate "2019.07.16"]
[EventType "team-tourn"]
[EventCountry "TUR"]
[SourceTitle "playchess.com"]
[Source "ChessBase"]
[SourceQuality "1"]
[TimeControl "5400+30"]

1. e4 {[%emt 0:00:30]} c5 {[%emt 0:00:30]} 2. Nc3 {[%emt 0:00:30]} d6 {[%emt 0:00:30]} 3. g3 {[%emt 0:00:00]} Nc6 {[%emt 0:00:30]} 4. Bg2 {[%emt 0:00:00]} g6 {[%emt 0:00:00]} 5. d3 {[%emt 0:00:00]} Bg7 {[%emt 0:00:00]} 6. Be3 {[%emt 0:00:00]} h5 {[%emt 0:00:00]} 7. f4 {[%emt 0:00:00]} Nf6 {[%emt 0:05:00]} 8. h3 {[%emt 0:01:00]} Nd4 {[%emt 0:03:30]} 9. Nf3 {[%emt 0:00:30]} e5 {[%emt 0:00:30]} 10. fxe5 {[%emt 0:01:30]} dxe5 {[%emt 0:03:30]} 11. Nxe5 {[%emt 0:01:30]} Ng4 {[%emt 0:09:30]} 12. Nxg4 {[%emt 0:01:30]} hxg4 {[%emt 0:00:00]} 13. h4 {[%emt 0:18:30]} Be5 {[%emt 0:00:00]} 14. O-O {[%emt 0:00:30]} Bxg3 {[%emt 0:00:30]} 15. Bg5 {[%emt 0:00:00]} Qd6 {[%emt 0:14:30]} 16. Nd5 {[%emt 0:00:00]} Bh2+ {[%emt 0:19:30]} 17. Kh1 {[%emt 0:00:30]} Qg3 $18 {[%emt 0:00:00]} (17... Bg3) 18. Qe1 {[%emt 0:27:30]} Qxe1 {[%emt 0:13:00]} 19. Raxe1 {[%emt 0:00:30]} Be5 {[%emt 0:00:00]} 20. Bf6 {[%emt 0:03:30]} Bxf6 {[%emt 0:00:00]} 21. Rxf6 {[%emt 0:00:30]} Be6 {[%emt 0:07:30]} 22. c3 {[%emt 0:04:30]} Nc6 {[%emt 0:01:30]} 23. Nc7+ {[%emt 0:00:30]} Ke7 {[%emt 0:00:30]} 24. Ref1 {[%emt 0:00:30]} Rxh4+ {[%emt 0:06:52]} 25. Kg1 {[%emt 0:00:30]} Rah8 {[%emt 0:00:00]} 26. Nxe6 {[%emt 0:00:30]} fxe6 {[%emt 0:00:00]} 27. Rf7+ {[%emt 0:00:00]} Kd6 {[%emt 0:00:10]} 28. Rxb7 {[%emt 0:00:00]} Ne5 {[%emt 0:00:17]} 29. d4 {[%emt 0:00:30]} Nf3+ {[%emt 0:01:06]} 30. Bxf3 {[%emt 0:01:30]} gxf3 {[%emt 0:00:05]} 31. dxc5+ {[%emt 0:00:30]} Ke5 {[%emt 0:04:07]} 32. Rxf3 {[%emt 0:14:30]} Kxe4 {[%emt 0:00:15]} 33. Rg3 {[%emt 0:00:30]} Rh1+ {[%emt 0:00:38]} 34. Kf2 {[%emt 0:00:30]} Rf8+ {[%emt 0:00:09]} 35. Kg2 {[%emt 0:00:30]} Rff1 {[%emt 0:00:30]} 36. Rg4+ {[%emt 0:00:30]} Ke3 {[%emt 0:00:30]} 37. Re4+ {[%emt 0:00:30]} Kxe4 {[%emt 0:00:30]} 38. c4 {[%emt 0:00:30]} Ke3 {[%emt 0:00:30]} 39. Rb3+ {[%emt 0:00:30]} Ke2 {[%emt 0:00:30]} 40. Kg3 {[%emt 0:00:30]} g5 {[%emt 0:00:30]} 41. Kg4 {[%emt 0:00:30]} Rfg1+ {[%emt 0:00:30]} 42. Rg3 {[%emt 0:03:30]} Rxg3+ {[%emt 0:04:16]} 43. Kxg3 {[%emt 0:00:30]} Rh7 {[%emt 0:00:00]} 44. Kg4 {[%emt 0:00:30]} Rc7 {[%emt 0:00:12]} 45. b4 {[%emt 0:00:30]} Kd3 {[%emt 0:00:03]} 46. Kxg5 {[%emt 0:00:30]} Kxc4 {[%emt 0:00:30]} 47. a3 {[%emt 0:00:00]} a5 {[%emt 0:00:00]} 48. bxa5 {[%emt 0:00:00]} Rxc5+ {[%emt 0:00:00]} 49. Kf6 {[%emt 0:00:00]} Rxa5 {[%emt 0:00:00]} 0-1

[Event "Turkish Club Cup 2019"]
[Site "Konya"]
[Date "2019.07.17"]
[Round "2"]
[White "Turan, Ercan"]
[Black "Pasa, Ahmet"]
[Result "0-1"]
[ECO "E90"]
[WhiteElo "1673"]
[BlackElo "1500"]
[Annotator "NA"]
[PlyCount "108"]
[EventDate "2019.07.16"]
[EventType "team-tourn"]
[EventCountry "TUR"]
[SourceTitle "playchess.com"]
[Source "ChessBase"]
[SourceQuality "1"]
[TimeControl "5400+30"]

1. d4 {[%emt 0:00:30]} Nf6 {[%emt 0:00:30]} 2. Nf3 {[%emt 0:00:30]} g6 {[%emt 0:00:00]} 3. c4 {[%emt 0:01:30]} Bg7 {[%emt 0:00:00]} 4. Nc3 {[%emt 0:00:00]} d6 {[%emt 0:00:30]} 5. e4 {[%emt 0:01:00]} O-O {[%emt 0:01:30]} 6. h3 {[%emt 0:02:30]} Nfd7 {[%emt 0:06:30]} 7. Be3 {[%emt 0:01:30]} e5 {[%emt 0:11:30]} 8. Be2 {[%emt 0:01:30]} a5 {[%emt 0:05:30]} 9. O-O {[%emt 0:03:30]} exd4 {[%emt 0:06:30]} 10. Nxd4 {[%emt 0:09:30]} Nc5 {[%emt 0:07:30]} 11. Qd2 {[%emt 0:01:30]} Re8 {[%emt 0:00:30]} 12. f3 {[%emt 0:08:30]} c6 {[%emt 0:13:30]} 13. Rad1 {[%emt 0:01:30]} Qh4 {[%emt 0:07:30]} 14. Bf2 {[%emt 0:07:30]} Qe7 {[%emt 0:01:30]} 15. Nc2 {[%emt 0:03:30]} Be5 {[%emt 0:07:30]} 16. Rfe1 {[%emt 0:09:30]} Ne6 {[%emt 0:04:30]} 17. Be3 {[%emt 0:09:30]} Qh4 {[%emt 0:03:30]} 18. Bf2 {[%emt 0:04:30]} Qe7 {[%emt 0:00:30]} 19. Bf1 {[%emt 0:04:30]} Nf4 {[%emt 0:04:22]} 20. Ne3 {[%emt 0:05:30]} Qg5 {[%emt 0:08:58]} 21. Kh1 {[%emt 0:01:30]} Nh5 {[%emt 0:00:54]} 22. Ne2 {[%emt 0:04:13]} Na6 {[%emt 0:05:07]} 23. Ng4 {[%emt 0:05:23]} Qxd2 {[%emt 0:01:34]} 24. Rxd2 {[%emt 0:00:31]} Be6 {[%emt 0:00:39]} 25. Ne3 {[%emt 0:02:53]} Rad8 {[%emt 0:00:29]} 26. Red1 {[%emt 0:01:07]} Nc5 {[%emt 0:00:52]} 27. Ng4 {[%emt 0:01:16]} Nd7 {[%emt 0:00:24]} 28. Ne3 {[%emt 0:01:32]} Nf8 {[%emt 0:01:19]} 29. g4 {[%emt 0:00:30]} Nf4 {[%emt 0:00:00]} 30. Nd4 {[%emt 0:02:31]} h5 {[%emt 0:00:21]} 31. gxh5 {[%emt 0:02:15]} Nxh5 {[%emt 0:00:27]} 32. Bh4 {[%emt 0:01:02]} Rd7 {[%emt 0:00:30]} 33. Ng4 {[%emt 0:01:06]} Bf4 {[%emt 0:00:46]} 34. Rc2 {[%emt 0:00:27]} g5 {[%emt 0:00:25]} 35. Bf2 {[%emt 0:00:19]} Nh7 {[%emt 0:00:17]} 36. Nh6+ {[%emt 0:00:32]} Kg7 {[%emt 0:00:35]} 37. Nhf5+ {[%emt 0:00:32]} Kg8 {[%emt 0:00:04]} 38. h4 {[%emt 0:00:33]} Kh8 {[%emt 0:01:06]} 39. Bh3 {[%emt 0:00:43]} N5f6 {[%emt 0:00:26]} 40. Rg1 {[%emt 0:00:41]} Rg8 {[%emt 0:00:38]} 41. Be1 {[%emt 0:01:18]} g4 {[%emt 0:00:41]} 42. fxg4 {[%emt 0:00:51]} Nxe4 {[%emt 0:00:16]} 43. b3 {[%emt 0:00:26]} a4 {[%emt 0:00:38]} 44. g5 {[%emt 0:00:36]} axb3 {[%emt 0:00:30]} 45. axb3 {[%emt 0:00:00]} d5 {[%emt 0:00:12]} 46. Nxe6 {[%emt 0:00:45]} fxe6 {[%emt 0:00:30]} 47. Nh6 {[%emt 0:00:00]} Re8 {[%emt 0:00:04]} 48. Bg2 {[%emt 0:01:11]} Ng3+ {[%emt 0:00:40]} 49. Bxg3 {[%emt 0:00:30]} Bxg3 {[%emt 0:00:30]} 50. h5 {[%emt 0:00:00]} Bf4 {[%emt 0:00:20]} 51. Bh3 {[%emt 0:00:00]} Nxg5 {[%emt 0:00:31]} 52. Rg4 {[%emt 0:00:58]} Nxh3 {[%emt 0:00:03]} 53. Rg6 {[%emt 0:01:37]} Bxh6 {[%emt 0:00:44]} 54. Rxh6+ {[%emt 0:00:30]} Rh7 {[%emt 0:00:00]} 0-1

[Event "Turkish Club Cup 2019"]
[Site "Konya"]
[Date "2019.07.17"]
[Round "2"]
[White "Polat, Ahmet Eren"]
[Black "Yigit, Fatih"]
[Result "0-1"]
[ECO "B24"]
[WhiteElo "1651"]
[BlackElo "1594"]
[Annotator "NA"]
[PlyCount "55"]
[EventDate "2019.07.16"]
[EventType "team-tourn"]
[EventCountry "TUR"]
[SourceTitle "playchess.com"]
[Source "ChessBase"]
[SourceQuality "1"]
[TimeControl "5400+30"]

1. e4 {[%emt 0:00:30]} c5 {[%emt 0:00:30]} 2. Nc3 {[%emt 0:00:00]} e6 {[%emt 0:00:30]} 3. g3 {[%emt 0:00:00]} Nc6 {[%emt 0:00:30]} 4. Bg2 {[%emt 0:00:30]} g6 {[%emt 0:03:30]} 5. d3 {[%emt 0:00:30]} Bg7 {[%emt 0:00:30]} 6. Be3 {[%emt 0:00:30]} b6 {[%emt 0:05:30]} 7. Qd2 {[%emt 0:01:30]} Bb7 {[%emt 0:03:30]} 8. Nge2 {[%emt 0:00:30]} a6 {[%emt 0:08:30]} 9. O-O {[%emt 0:02:30]} Nf6 {[%emt 0:05:30]} 10. h3 {[%emt 0:01:30]} O-O {[%emt 0:00:30]} 11. Bh6 {[%emt 0:03:30]} d5 {[%emt 0:06:30]} 12. Bxg7 {[%emt 0:03:30]} Kxg7 {[%emt 0:00:30]} 13. exd5 {[%emt 0:00:30]} exd5 {[%emt 0:00:30]} 14. Nf4 {[%emt 0:02:30]} Nd4 {[%emt 0:04:30]} 15. Rfe1 {[%emt 0:16:30]} Qd7 {[%emt 0:06:30]} 16. b3 {[%emt 0:15:30]} Bc6 {[%emt 0:06:30]} 17. Nd1 {[%emt 0:13:30]} Rae8 {[%emt 0:05:30]} 18. Nb2 {[%emt 0:01:30]} h6 {[%emt 0:08:30]} 19. h4 {[%emt 0:11:30]} Qg4 {[%emt 0:06:30]} 20. c3 {[%emt 0:01:30]} Nf3+ {[%emt 0:00:30]} 21. Bxf3 {[%emt 0:00:00]} Qxf3 {[%emt 0:00:30]} 22. d4 {[%emt 0:06:03]} g5 {[%emt 0:06:31]} 23. Ng2 {[%emt 0:04:37]} Ne4 {[%emt 0:04:19]} 24. Qe3 {[%emt 0:02:23]} Qf6 {[%emt 0:03:05]} 25. f4 {[%emt 0:03:15]} Qf5 {[%emt 0:03:15]} 26. Kh2 {[%emt 0:07:05]} Bd7 {[%emt 0:01:21]} 27. fxg5 {[%emt 0:01:33]} Nxg5 {[%emt 0:01:43]} 28. Qd3 {[%emt 0:00:33]} 0-1

[Event "Turkish Club Cup 2019"]
[Site "Konya"]
[Date "2019.07.17"]
[Round "2"]
[White "Nas, Muhammed Akif Bahadd"]
[Black "Iyiol, Mehmet"]
[Result "0-1"]
[ECO "B22"]
[WhiteElo "1620"]
[BlackElo "1857"]
[Annotator "NA"]
[PlyCount "96"]
[EventDate "2019.07.16"]
[EventType "team-tourn"]
[EventCountry "TUR"]
[SourceTitle "playchess.com"]
[Source "ChessBase"]
[SourceQuality "1"]
[TimeControl "5400+30"]

1. e4 {[%emt 0:00:30]} c5 {[%emt 0:00:30]} 2. Nf3 {[%emt 0:00:00]} e6 {[%emt 0:00:00]} 3. c3 {[%emt 0:01:00]} Nf6 {[%emt 0:01:00]} 4. e5 {[%emt 0:02:30]} Nd5 {[%emt 0:00:00]} 5. Bc4 {[%emt 0:02:30]} Nb6 {[%emt 0:02:00]} 6. Bb3 {[%emt 0:00:30]} d5 {[%emt 0:04:30] B22: Sicilian: 2 c3} (6... d6 7. d4 cxd4 8. cxd4 dxe5 9. Nxe5 Nc6 10. Qf3 Bb4+ 11. Nc3 O-O 12. Nxc6 bxc6 13. O-O Qxd4 14. Rd1 Qh4 15. Ne4 e5 16. Bg5 Qg4 17. a3 Qxf3 18. gxf3 {0-1 (32) Mamedov,R (2709)-Harikrishna,P (2744) Huaian 2017}) 7. d4 {[%emt 0:05:30]} Nc6 {[%emt 0:02:30]} 8. Be3 {[%emt 0:02:30]} cxd4 {[%emt 0:04:30]} 9. cxd4 {[%emt 0:00:30]} Bd7 {[%emt 0:02:30]} 10. O-O {[%emt 0:01:30]} Rc8 {[%emt 0:02:30]} 11. Nbd2 {[%emt 0:02:30]} Na5 $146 {[%emt 0:02:30]} ({Predecessor:} 11... Be7 12. Rc1 O-O 13. Bc2 f5 14. exf6 Bxf6 15. b3 Qe7 16. Re1 Nb4 17. Bb1 Rxc1 18. Qxc1 {½-½ (30) Minte,H (1626)-Scholz,W (1477) Binz 2014}) 12. h3 {[%emt 0:00:30]} Nxb3 {[%emt 0:00:30]} 13. axb3 {[%emt 0:00:30]} a6 {[%emt 0:01:30]} 14. Nh2 {[%emt 0:03:30]} Bb5 {[%emt 0:01:30]} 15. Re1 {[%emt 0:00:30]} h5 {[%emt 0:06:30]} 16. Ndf3 {[%emt 0:04:30]} Bb4 {[%emt 0:03:30]} 17. Bg5 {[%emt 0:02:30]} Qd7 {[%emt 0:02:30]} 18. Bd2 {[%emt 0:01:30]} Qe7 {[%emt 0:02:30]} 19. Bg5 {[%emt 0:00:30]} Qf8 {[%emt 0:02:30]} 20. Re3 {[%emt 0:00:30]} Qg8 {[%emt 0:08:30]} 21. Rc1 {[%emt 0:01:30]} Qh7 {[%emt 0:01:30]} 22. Rxc8+ {[%emt 0:01:30]} Nxc8 {[%emt 0:03:30]} 23. Nh4 {[%emt 0:11:30]} Ne7 {[%emt 0:06:30]} 24. N2f3 {[%emt 0:03:30]} Nf5 $15 {[%emt 0:01:30]} 25. Qc1 {[%emt 0:01:30]} Kd7 {[%emt 0:01:30]} 26. Rc3 {[%emt 0:13:30]} Bxc3 {[%emt 0:02:30]} 27. Qxc3 {[%emt 0:00:30]} Nxh4 {[%emt 0:06:30]} 28. Bxh4 {[%emt 0:00:30]} Qg8 {[%emt 0:03:30]} 29. Qc5 {[%emt 0:01:30]} Qf8 {[%emt 0:00:30]} 30. Qc1 {[%emt 0:02:30]} Bc6 {[%emt 0:04:30]} 31. Ne1 {[%emt 0:01:30]} Qb4 {[%emt 0:01:30]} 32. Qe3 {[%emt 0:00:30]} Kc8 {[%emt 0:00:30]} 33. Nc2 {[%emt 0:01:30]} Qf8 {[%emt 0:00:30]} 34. f4 {[%emt 0:01:30]} Kb8 {[%emt 0:00:45]} 35. Be1 {[%emt 0:00:30]} b6 {[%emt 0:00:44]} 36. Bb4 {[%emt 0:00:30]} Qc8 {[%emt 0:00:07]} 37. Qg3 {[%emt 0:02:30]} g6 {[%emt 0:00:24]} 38. Qg5 {[%emt 0:00:30]} Qd7 {[%emt 0:00:30]} 39. Qf6 {[%emt 0:01:30]} Rc8 {[%emt 0:00:30]} 40. Ne1 {[%emt 0:00:30]} Bb7 {[%emt 0:01:23]} 41. Nf3 {[%emt 0:01:30]} Rc1+ {[%emt 0:00:27]} 42. Kh2 {[%emt 0:00:00]} Ka7 {[%emt 0:01:15]} 43. Ng5 {[%emt 0:00:00]} Qb5 {[%emt 0:00:17]} 44. Bc3 {[%emt 0:07:30]} Qf1 {[%emt 0:00:59]} 45. Nxf7 {[%emt 0:00:00]} Qh1+ {[%emt 0:00:24]} 46. Kg3 {[%emt 0:01:00]} Rc2 {[%emt 0:00:41]} 47. Nd6 {[%emt 0:01:14]} Rxg2+ {[%emt 0:00:22]} 48. Kh4 {[%emt 0:00:41]} Rg4# {[%emt 0:00:30]} 0-1